fUST/lending_fUST_20250610
["ID","MTS","AMOUNT","RATE_DAILY","PERIOD"]
[365154262,1749499840914,-657.67,0.00021915,4]
[365154263,1749499840923,-460.0,0.00021915,4]
[365154264,1749499840933,-1008.2,0.00021915,4]
[365154265,1749499840944,-2138.63,0.00021915,4]
[365154266,1749499840953,-626.12,0.00021916,4]
[365154267,1749499840963,-460.0,0.00021917,4]
[365154268,1749499840972,-460.0,0.00021917,4]
[365154269,1749499840981,-460.0,0.00021917,2]
[365154270,1749499840992,-460.0,0.00021917,4]
[365154271,1749499841002,-500.0,0.00021917,2]
[365154272,1749499841011,-460.0,0.00021917,4]
[365154273,1749499841020,-460.0,0.00021917,4]
[365154274,1749499841029,-460.0,0.00021917,4]
[365154275,1749499841039,-1008.8,0.00021917,4]
[365154276,1749499841048,-1148.53,0.00021917,4]
[365154277,1749499841059,-460.0,0.00021917,4]
[365154278,1749499841068,-1639.75,0.00021917,4]
[365154279,1749499841078,-460.0,0.00021917,4]
[365154280,1749499841087,-547.29,0.00021917,4]
[365154281,1749499841099,-596.05,0.00021917,4]
[365154282,1749499841111,-460.0,0.00021917,4]
[365154283,1749499841120,-460.0,0.00021917,4]
[365154284,1749499841130,-460.0,0.00021917,4]
[365154285,1749499841139,-460.0,0.00021917,4]
[365154286,1749499841149,-460.0,0.00021917,4]
[365154287,1749499841160,-661.15,0.00021917,4]
[365154288,1749499841169,-460.0,0.00021917,4]
[365154289,1749499841179,-460.0,0.00021917,4]
[365154290,1749499841189,-1246.28,0.00021917,4]
[365154291,1749499841198,-460.0,0.00021917,4]
[365154292,1749499841208,-460.0,0.00021917,4]
[365154293,1749499841218,-460.0,0.00021917,4]
[365154294,1749499841227,-460.0,0.00021917,4]
[365154295,1749499841237,-460.0,0.00021917,4]
[365154296,1749499841247,-460.0,0.00021917,4]
[365154297,1749499841257,-460.0,0.00021917,4]
[365154298,1749499841266,-460.0,0.00021917,4]
[365154299,1749499841276,-9754.59,0.00021917,4]
[365154300,1749499841285,-533.38,0.00021917,4]
[365154301,1749499841295,-1374.28,0.00021917,4]
[365154302,1749499841305,-460.0,0.00021917,4]
[365154303,1749499841315,-1461.37,0.00021917,4]
[365154304,1749499841325,-1373.98,0.00021917,4]
[365154305,1749499841335,-500.0,0.00021917,4]
[365154306,1749499841345,-500.0,0.00021917,4]
[365154307,1749499841355,-500.0,0.00021917,4]
[365154308,1749499841365,-500.0,0.00021917,4]
[365154309,1749499841375,-460.0,0.00021917,4]
[365154310,1749499841384,-161.0,0.00022,2]
[365154311,1749499841394,-1855.99,0.00022,7]
[365154312,1749499841404,-168.0,0.00022,2]
[365154313,1749499841416,-2386.27049823,0.00022003,6]
[365154314,1749499841426,-500.0,0.00022094,2]
[365154315,1749499841436,-614.29939946,0.00022132,2]
[365154316,1749499841446,-2386.27049823,0.00022141,6]
[365154317,1749499841456,-460.0,0.00022189,4]
[365154318,1749499841467,-742.29,0.00022189,4]
[365154319,1749499841477,-657.67,0.00022189,4]
[365154320,1749499841487,-460.0,0.00022189,4]
[365154321,1749499841498,-1008.2,0.00022189,4]
[365154322,1749499841508,-2138.63,0.00022189,4]
[365154323,1749499841522,-626.12,0.0002219,4]
[365154324,1749499841535,-460.0,0.00022191,4]
[365154325,1749499841545,-460.0,0.00022191,2]
[365154326,1749499841555,-460.0,0.00022191,4]
[365154327,1749499841565,-460.0,0.00022191,4]
[365154328,1749499841575,-460.0,0.00022191,4]
[365154329,1749499841584,-1008.8,0.00022191,4]
[365154330,1749499841594,-1148.53,0.00022191,4]
[365154331,1749499841604,-460.0,0.00022191,4]
[365154332,1749499841614,-1639.75,0.00022191,4]
[365154333,1749499841624,-460.0,0.00022191,4]
[365154334,1749499841634,-547.29,0.00022191,4]
[365154335,1749499841643,-596.05,0.00022191,4]
[365154336,1749499841653,-460.0,0.00022191,4]
[365154337,1749499841666,-460.0,0.00022191,4]
[365154338,1749499841675,-460.0,0.00022191,4]
[365154339,1749499841685,-460.0,0.00022191,4]
[365154340,1749499841695,-661.15,0.00022191,4]
[365154341,1749499841705,-460.0,0.00022191,4]
[365154342,1749499841715,-460.0,0.00022191,4]
[365154343,1749499841725,-1246.28,0.00022191,4]
[365154344,1749499841734,-460.0,0.00022191,4]
[365154345,1749499841744,-460.0,0.00022191,4]
[365154346,1749499841754,-460.0,0.00022191,4]
[365154347,1749499841763,-460.0,0.00022191,4]
[365154348,1749499841772,-460.0,0.00022191,4]
[365154349,1749499841781,-460.0,0.00022191,4]
[365154350,1749499841791,-460.0,0.00022191,4]
[365154351,1749499841800,-460.0,0.00022191,4]
[365154352,1749499841809,-9754.59,0.00022191,4]
[365154353,1749499841818,-533.38,0.00022191,4]
[365154354,1749499841828,-460.0,0.00022191,4]
[365154355,1749499841837,-1374.28,0.00022191,4]
[365154356,1749499841846,-1461.37,0.00022191,4]
[365154357,1749499841855,-1373.98,0.00022191,4]
[365154358,1749499841865,-500.0,0.00022191,4]
[365154359,1749499841875,-380.0,0.00022191,4]
[365154360,1749499841884,-281.31911977,0.000222,69]
[365154361,1749499841895,-16000.0,0.00022249,2]
[365154362,1749499841905,-160.0,0.00022252,3]
[365154363,1749499841916,-2386.27049823,0.00022279,6]
[365154364,1749499841926,-2952.7664824,0.00022363,2]
[365154365,1749499841935,-2386.27049823,0.00022417,7]
[365154366,1749499841945,-460.0,0.00022463,4]
[365154367,1749499841954,-742.29,0.00022463,4]
[365154368,1749499841963,-657.67,0.00022463,4]
[365154369,1749499841973,-520.11,0.00022463,4]
[365154370,1749499841982,-1008.2,0.00022463,4]
[365154371,1749499841992,-2138.63,0.00022463,4]
[365154372,1749499842002,-626.12,0.00022464,4]
[365154373,1749499842011,-430.6,0.00022465,2]
[365154374,1749499842020,-460.0,0.00022465,2]
[365154375,1749499842030,-460.0,0.00022465,4]
[365154376,1749499842039,-500.0,0.00022465,2]
[365154377,1749499842048,-350.82255718,0.00022465,4]
[365154378,1749499842068,-460.0,0.00022465,4]
[365154379,1749499842079,-1008.8,0.00022465,4]
[365154380,1749499842089,-1148.53,0.00022465,4]
[365154381,1749499842099,-605.12587577,0.00022465,4]
[365154382,1749499842109,-1639.75,0.00022465,4]
[365154383,1749499842118,-460.0,0.00022465,4]
[365154384,1749499842127,-547.29,0.00022465,4]
[365154385,1749499842136,-596.05,0.00022465,4]
[365154386,1749499842146,-460.0,0.00022465,4]
[365154387,1749499842156,-460.0,0.00022465,4]
[365154388,1749499842166,-460.0,0.00022465,4]
[365154389,1749499842176,-661.15,0.00022465,4]
[365154390,1749499842186,-586.40773408,0.00022465,4]
[365154391,1749499842196,-460.0,0.00022465,4]
[365154392,1749499842205,-1246.28,0.00022465,4]
[365154393,1749499842214,-460.0,0.00022465,4]
[365154394,1749499842223,-460.0,0.00022465,4]
[365154395,1749499842233,-460.0,0.00022465,4]
[365154396,1749499842242,-460.0,0.00022465,4]
[365154397,1749499842252,-460.0,0.00022465,4]
[365154398,1749499842261,-460.0,0.00022465,4]
[365154399,1749499842271,-9754.59,0.00022465,4]
[365154400,1749499842281,-533.38,0.00022465,4]
[365154401,1749499842290,-460.0,0.00022465,4]
[365154402,1749499842300,-1374.28,0.00022465,4]
[365154403,1749499842309,-1461.37,0.00022465,4]
[365154404,1749499842319,-1373.98,0.00022465,4]
[365154405,1749499842329,-500.0,0.00022465,4]
[365154406,1749499842339,-1688.0,0.00022531,2]
[365154407,1749499842349,-417.14724398,0.00022531,2]
[365154408,1749499842358,-207.4,0.00022531,2]
[365154409,1749499842368,-213.08899333,0.00022555,7]
[365154410,1749499842378,-11856.04170836,0.00022555,7]
[365154411,1749499842388,-2386.27049823,0.00022555,7]
[365154412,1749499842397,-2386.27049823,0.00022693,7]
[365154413,1749499842407,-500.0,0.00022699,2]
[365154414,1749499842417,-500.0,0.00022699,2]
[365154415,1749499842426,-500.0,0.00022699,2]
[365154416,1749499842435,-469.16781552,0.00022699,2]
[365154417,1749499842446,-500.0,0.00022699,2]
[365154418,1749499842455,-158.29772883,0.00022699,2]
[365154419,1749499842465,-500.0,0.00022699,2]
[365154420,1749499842475,-500.0,0.00022699,2]
[365154421,1749499842484,-500.0,0.00022699,2]
[365154422,1749499842494,-500.0,0.00022699,2]
[365154423,1749499842504,-500.0,0.00022699,2]
[365154424,1749499842514,-500.0,0.00022699,2]
[365154425,1749499842527,-500.0,0.00022699,2]
[365154426,1749499842537,-14859.60160394,0.000227,2]
[365154427,1749499842547,-39414.30259439,0.000227,2]
[365154428,1749499842557,-4603.657963,0.000227,2]
[365154429,1749499842567,-614.29939946,0.00022722,2]
[365154430,1749499842577,-460.0,0.00022737,4]
[365154431,1749499842587,-742.29,0.00022737,4]
[365154432,1749499842597,-657.67,0.00022737,4]
[365154433,1749499842608,-1008.2,0.00022737,4]
[365154434,1749499842751,-2138.63,0.00022737,4]
[365154436,1749499842761,-626.12,0.00022738,4]
[365154437,1749499842771,-460.0,0.00022739,2]
[365154438,1749499842780,-460.0,0.00022739,4]
[365154439,1749499842790,-460.0,0.00022739,4]
[365154440,1749499842799,-1008.8,0.00022739,4]
[365154441,1749499842809,-1148.53,0.00022739,4]
[365154442,1749499842818,-1639.75,0.00022739,4]
[365154443,1749499842828,-460.0,0.00022739,4]
[365154444,1749499842837,-547.29,0.00022739,4]
[365154445,1749499842846,-596.05,0.00022739,4]
[365154446,1749499842857,-460.0,0.00022739,4]
[365154447,1749499842866,-460.0,0.00022739,4]
[365154449,1749499842876,-661.15,0.00022739,4]
[365154450,1749499842885,-460.0,0.00022739,4]
[365154451,1749499842895,-1246.28,0.00022739,4]
[365154452,1749499842904,-188.10159536,0.00022739,4]
[365154453,1749499842914,-460.0,0.00022739,4]
[365154454,1749499842923,-341.76301991,0.00022739,4]
[365154456,1749499842933,-460.0,0.00022739,4]
[365154459,1749499842945,-460.0,0.00022739,4]
[365154461,1749499842957,-460.0,0.00022739,4]
[365154464,1749499842967,-9754.59,0.00022739,4]
[365154465,1749499842976,-533.38,0.00022739,4]
[365154466,1749499842986,-1374.28,0.00022739,4]
[365154467,1749499842995,-460.0,0.00022739,4]
[365154468,1749499843005,-1461.37,0.00022739,4]
[365154470,1749499843014,-1373.98,0.00022739,4]
[365154472,1749499843024,-364.646625,0.0002274,2]
[365154473,1749499843034,-364.9269501,0.0002274,2]
[365154474,1749499843044,-16000.0,0.00022797,2]
[365154475,1749499843055,-2386.27049823,0.00022831,8]
[365154476,1749499843064,-2386.27049823,0.00022969,8]
[365154477,1749499843074,-500.0,0.00022973,2]
[365154478,1749499843085,-267.59102629,0.00022973,2]
[365154479,1749499843097,-500.0,0.00022973,2]
[365154480,1749499843108,-500.0,0.00022973,2]
[365154481,1749499843118,-5423.0,0.00023,2]
[365154482,1749499843127,-5423.0,0.00023,2]
[365154483,1749499843136,-5423.0,0.00023,2]
[365154484,1749499843144,-5423.0,0.00023,2]
[365154485,1749499843154,-5423.0,0.00023,2]
[365154486,1749499843164,-5423.0,0.00023,2]
[365154487,1749499843173,-5423.0,0.00023,2]
[365154488,1749499843185,-5423.0,0.00023,2]
[365154489,1749499843195,-5423.0,0.00023,2]
[365154490,1749499843205,-5423.0,0.00023,2]
[365154491,1749499843215,-500.0,0.00023,2]
[365154493,1749499843225,-500.0,0.00023,2]
[365154494,1749499843235,-500.0,0.00023,2]
[365154495,1749499843245,-557.78340041,0.00023,2]
[365154496,1749499843254,-500.0,0.00023,2]
[365154497,1749499843264,-500.0,0.00023,2]
[365154498,1749499843273,-600.0,0.00023,2]
[365154499,1749499843283,-500.0,0.00023,2]
[365154500,1749499843292,-460.0,0.00023011,4]
[365154501,1749499843301,-742.29,0.00023011,4]
[365154502,1749499843311,-657.67,0.00023011,4]
[365154503,1749499843321,-1008.2,0.00023011,4]
[365154505,1749499843330,-2138.63,0.00023011,4]
[365154506,1749499843341,-500.0,0.00023012,2]
[365154507,1749499843351,-626.12,0.00023012,4]
[365154508,1749499843360,-460.0,0.00023013,2]
[365154509,1749499843370,-460.0,0.00023013,4]
[365154510,1749499843380,-504.7392332,0.00023013,2]
[365154512,1749499843390,-460.0,0.00023013,4]
[365154514,1749499843400,-1008.8,0.00023013,4]
[365154516,1749499843410,-1148.53,0.00023013,4]
[365154518,1749499843420,-1639.75,0.00023013,4]
[365154520,1749499843430,-547.29,0.00023013,4]
[365154522,1749499843440,-596.05,0.00023013,4]
[365154525,1749499843451,-460.0,0.00023013,4]
[365154526,1749499843461,-460.0,0.00023013,4]
[365154528,1749499843471,-661.15,0.00023013,4]
[365154531,1749499843481,-460.0,0.00023013,4]
[365154533,1749499843491,-1246.28,0.00023013,4]
[365154535,1749499843501,-460.0,0.00023013,4]
[365154537,1749499843511,-460.0,0.00023013,4]
[365154539,1749499843525,-460.0,0.00023013,4]
[365154541,1749499843537,-460.0,0.00023013,4]
[365154543,1749499843547,-9754.59,0.00023013,4]
[365154545,1749499843559,-533.38,0.00023013,4]
[365154547,1749499843569,-1374.28,0.00023013,4]
[365154550,1749499843579,-460.0,0.00023013,4]
[365154552,1749499843589,-1461.37,0.00023013,4]
[365154554,1749499843599,-1373.98,0.00023013,4]
[365154556,1749499843609,-162.0,0.00023014,7]
[365154558,1749499843618,-168.0,0.00023014,7]
[365154559,1749499843629,-155.0,0.00023064,2]
[365154561,1749499843638,-1855.99,0.000231,7]
[365154562,1749499843648,-2386.27049823,0.00023107,8]
[365154563,1749499843658,-159.89887137,0.00023151,2]
[365154564,1749499843669,-152.511,0.00023154,2]
[365154565,1749499843679,-196.942,0.00023154,2]
[365154566,1749499843689,-150.0,0.00023154,2]
[365154567,1749499843699,-150.359,0.00023154,2]
[365154568,1749499843713,-150.0,0.00023154,2]
[365154569,1749499843722,-154.88,0.00023154,2]
[365154570,1749499843732,-150.0,0.00023154,2]
[365154571,1749499843742,-963.0,0.00023154,2]
[365154572,1749499843751,-2160.0,0.00023154,2]
[365154573,1749499843761,-653.0,0.00023154,2]
[365154574,1749499843772,-405.0,0.00023154,2]
[365154575,1749499843781,-405.0,0.00023154,2]
[365154576,1749499843791,-207.0,0.0002322,2]
[365154577,1749499843800,-2386.27049823,0.00023245,8]
[365154578,1749499843809,-460.0,0.00023285,4]
[365154579,1749499843819,-742.29,0.00023285,4]
[365154580,1749499843829,-657.67,0.00023285,4]
[365154581,1749499843838,-1008.2,0.00023285,4]
[365154582,1749499843848,-2138.63,0.00023285,4]
[365154583,1749499843858,-626.12,0.00023286,4]
[365154584,1749499843867,-157.78072945,0.00023287,2]
[365154585,1749499843876,-460.0,0.00023287,2]
[365154586,1749499843886,-569.00980209,0.00023287,4]
[365154587,1749499843907,-460.0,0.00023287,4]
[365154588,1749499843918,-1008.8,0.00023287,4]
[365154589,1749499843928,-1148.53,0.00023287,4]
[365154590,1749499843938,-1639.75,0.00023287,4]
[365154591,1749499843949,-547.29,0.00023287,4]
[365154592,1749499843959,-596.05,0.00023287,4]
[365154593,1749499843970,-460.0,0.00023287,4]
[365154594,1749499843980,-460.0,0.00023287,4]
[365154595,1749499843990,-661.15,0.00023287,4]
[365154596,1749499844000,-460.0,0.00023287,4]
[365154597,1749499844010,-151.0,0.00023287,7]
[365154598,1749499844020,-1246.28,0.00023287,4]
[365154599,1749499844031,-460.0,0.00023287,4]
[365154600,1749499844042,-460.0,0.00023287,4]
[365154601,1749499844052,-322.59116447,0.00023287,4]
[365154602,1749499844062,-460.0,0.00023287,4]
[365154603,1749499844073,-9754.59,0.00023287,4]
[365154604,1749499844083,-533.38,0.00023287,4]
[365154605,1749499844093,-1374.28,0.00023287,4]
[365154606,1749499844103,-460.0,0.00023287,4]
[365154607,1749499844113,-1461.37,0.00023287,4]
[365154608,1749499844123,-1373.98,0.00023287,4]
[365154609,1749499844134,-3000.0,0.000233,2]
[365154610,1749499844144,-3000.0,0.0002331,2]
[365154611,1749499844154,-1560.568451,0.0002331,2]
[365154612,1749499844166,-614.29939946,0.00023311,2]
[365154613,1749499844176,-3000.0,0.0002332,2]
[365154614,1749499844187,-3000.0,0.0002333,2]
[365154615,1749499844197,-3000.0,0.0002334,2]
[365154616,1749499844208,-16000.0,0.00023345,2]
[365154617,1749499844218,-154.470227,0.00023348,7]
[365154618,1749499844228,-3000.0,0.0002335,2]
[365154619,1749499844238,-3000.0,0.0002336,2]
[365154620,1749499844248,-3000.0,0.0002337,2]
[365154621,1749499844259,-500.0,0.00023373,2]
[365154622,1749499844269,-3304.788418,0.0002338,2]
[365154623,1749499844279,-2386.27049823,0.00023383,9]
[365154624,1749499844289,-1541.04,0.00023406,2]
[365154625,1749499844298,-160.0,0.00023409,4]
[365154626,1749499844308,-500.0,0.0002345,2]
[365154627,1749499844318,-500.98536793,0.0002345,2]
[365154628,1749499844328,-2952.7664824,0.0002347,2]
[365154629,1749499844338,-207.0,0.0002348,2]
[365154630,1749499844350,-500.0,0.00023485,2]
[365154631,1749499844359,-76022.906,0.0002352,2]
[365154632,1749499844370,-906.003661,0.0002352,3]
[365154633,1749499844381,-158.238355,0.0002352,5]
[365154634,1749499844391,-500.0,0.00023521,2]
[365154635,1749499844402,-306.00339111,0.00023521,2]
[365154636,1749499844413,-438.97473954,0.00023521,2]
[365154637,1749499844424,-2386.27049823,0.00023521,9]
[365154638,1749499844434,-1200.0,0.00023548,2]
[365154639,1749499844444,-1000.0,0.00023548,2]
[365154640,1749499844455,-460.0,0.00023559,4]
[365154641,1749499844465,-742.29,0.00023559,4]
[365154642,1749499844475,-657.67,0.00023559,4]
[365154643,1749499844485,-1008.2,0.00023559,4]
[365154644,1749499844496,-2138.63,0.00023559,4]
[365154645,1749499844506,-626.12,0.0002356,4]
[365154646,1749499844517,-151.0,0.0002356,7]
[365154647,1749499844530,-151.0,0.00023561,7]
[365154648,1749499844540,-200.0,0.00023561,4]
[365154649,1749499844550,-150.61138,0.00023561,4]
[365154650,1749499844559,-460.0,0.00023561,2]
[365154651,1749499844570,-460.0,0.00023561,4]
[365154652,1749499844579,-1008.8,0.00023561,4]
[365154653,1749499844589,-1148.53,0.00023561,4]
[365154654,1749499844599,-1639.75,0.00023561,4]
[365154655,1749499844609,-547.29,0.00023561,4]
[365154656,1749499844619,-596.05,0.00023561,4]
[365154657,1749499844629,-460.0,0.00023561,4]
[365154658,1749499844639,-460.0,0.00023561,4]
[365154659,1749499844649,-661.15,0.00023561,4]
[365154660,1749499844659,-460.0,0.00023561,4]
[365154661,1749499844670,-1246.28,0.00023561,4]
[365154662,1749499844680,-460.0,0.00023561,4]
[365154663,1749499844691,-460.0,0.00023561,4]
[365154664,1749499844701,-460.0,0.00023561,4]
[365154665,1749499844711,-9754.59,0.00023561,4]
[365154666,1749499844721,-533.38,0.00023561,4]
[365154667,1749499844731,-1374.28,0.00023561,4]
[365154668,1749499844742,-553.24574625,0.00023561,4]
[365154669,1749499844751,-1461.37,0.00023561,4]
[365154670,1749499844761,-1373.98,0.00023561,4]
[365154671,1749499844771,-811.93,0.000236,7]
[365154672,1749499844781,-306.0,0.00023616,2]
[365154673,1749499844791,-306.0,0.00023616,2]
[365154674,1749499844802,-2386.27049823,0.00023659,9]
[365154675,1749499844812,-364.646625,0.00023699,2]
[365154676,1749499844822,-207.0,0.0002374,2]
[365154677,1749499844832,-2386.27049823,0.00023797,9]
[365154678,1749499844842,-2559.38,0.000238,2]
[365154679,1749499844852,-460.0,0.00023833,4]
[365154680,1749499844862,-742.29,0.00023833,4]
[365154681,1749499844872,-657.67,0.00023833,4]
[365154682,1749499844882,-1008.2,0.00023833,4]
[365154683,1749499844892,-2138.63,0.00023833,4]
[365154684,1749499844901,-626.12,0.00023834,4]
[365154685,1749499844911,-528.94739651,0.00023835,2]
[365154686,1749499844923,-460.0,0.00023835,4]
[365154687,1749499844933,-1008.8,0.00023835,4]
[365154688,1749499844943,-1148.53,0.00023835,4]
[365154689,1749499844953,-1639.75,0.00023835,4]
[365154690,1749499844963,-547.29,0.00023835,4]
[365154691,1749499844973,-596.05,0.00023835,4]
[365154692,1749499844983,-460.0,0.00023835,4]
[365154693,1749499844993,-460.0,0.00023835,4]
[365154694,1749499845003,-661.15,0.00023835,4]
[365154695,1749499845013,-460.0,0.00023835,4]
[365154696,1749499845023,-1246.28,0.00023835,4]
[365154697,1749499845033,-460.0,0.00023835,4]
[365154698,1749499845042,-460.0,0.00023835,4]
[365154699,1749499845164,-460.0,0.00023835,4]
[365154700,1749499845175,-9754.59,0.00023835,4]
[365154701,1749499845185,-533.38,0.00023835,4]
[365154702,1749499845195,-1374.28,0.00023835,4]
[365154703,1749499845205,-1461.37,0.00023835,4]
[365154704,1749499845215,-1373.98,0.00023835,4]
[365154705,1749499845225,-217.1484714,0.00023836,2]
[365154706,1749499845235,-319.1604193,0.00023836,2]
[365154707,1749499845245,-1195.8619859,0.00023836,2]
[365154708,1749499845255,-200.0,0.0002387,9]
[365154709,1749499845264,-500.0,0.00023873,2]
[365154710,1749499845274,-150.0,0.000239,2]
[365154711,1749499845284,-614.29939946,0.000239,2]
[365154712,1749499845294,-215.0738,0.000239,2]
[365154713,1749499845304,-2386.27049823,0.00023934,10]
[365154714,1749499845314,-166.0,0.00023947,3]
[365154715,1749499845324,-1744.0,0.00023947,3]
[365154716,1749499845333,-166.0,0.00023947,3]
[365154717,1749499845343,-203.64202446,0.00023947,3]
[365154718,1749499845352,-1744.0,0.00023947,3]
[365154719,1749499845363,-166.0,0.00023947,3]
[365154720,1749499845372,-1744.0,0.00023947,3]
[365154721,1749499845381,-166.0,0.00023947,3]
[365154722,1749499845391,-1744.0,0.00023947,3]
[365154723,1749499845401,-166.0,0.00023947,3]
[365154724,1749499845411,-1791.94458443,0.00023947,3]
[365154725,1749499845422,-166.0,0.00023947,3]
[365154726,1749499845435,-166.0,0.00023947,3]
[365154727,1749499845447,-166.0,0.00023947,3]
[365154728,1749499845457,-172.0,0.00023947,3]
[365154729,1749499845467,-316.0,0.00023947,3]
[365154730,1749499845477,-343.53101938,0.00023947,3]
[365154731,1749499845488,-151.0,0.00023947,7]
[365154732,1749499845497,-151.0,0.00023947,7]
[365154733,1749499845508,-151.0,0.00023947,7]
[365154734,1749499845520,-957.403093,0.00023947,2]
[365154735,1749499845531,-957.403093,0.00023947,2]
[365154736,1749499845541,-151.0,0.00023947,7]
[365154737,1749499845551,-500.0,0.00023973,2]
[365154738,1749499845560,-500.0,0.00023973,2]
[365154739,1749499845571,-1000.0,0.00023998,2]
[365154740,1749499845580,-2200.0,0.00023999,2]
[365154741,1749499845590,-500.0,0.00023999,2]
[365154742,1749499845601,-182.491638,0.00023999,7]
[365154743,1749499845611,-182.491638,0.00023999,7]
[365154744,1749499845621,-154776.56844781,0.00024,2]
[365154767,1749500281490,166.12604,0.00013699,2]
[365154820,1749501037499,-150.0,0.000189,2]
[365154821,1749501037509,-300.0,0.00019999,2]
[365154822,1749501037519,-251.0,0.00019999,2]
[365154823,1749501037529,-300.0,0.00019999,2]
[365154824,1749501037539,-66.56713816,0.00019999,2]
[365154862,1749501038494,-1133.43286184,0.00019999,2]
[365154865,1749501038504,-1000.0,0.00019999,2]
[365154866,1749501038514,-16629.47166963,0.0002,15]
[365154868,1749501038524,-1109.52767583,0.0002,2]
[365154870,1749501038534,-1749.93169876,0.000209,4]
[365154872,1749501038544,-1749.9316987,0.00021038,4]
[365154875,1749501038553,-511.45340538,0.00021073,2]
[365154876,1749501038563,-773.22,0.00021088,2]
[365154878,1749501038573,-170.333,0.00021094,2]
[365154880,1749501038583,-526.78093671,0.00021095,4]
[365154881,1749501038592,-400.0,0.00021095,4]
[365154882,1749501038602,-350.0,0.00021095,4]
[365154883,1749501038612,-520.43362242,0.00021095,4]
[365154884,1749501038621,-420.0,0.00021095,4]
[365154885,1749501038631,-460.0,0.00021095,4]
[365154886,1749501038640,-460.0,0.00021095,4]
[365154887,1749501038649,-400.0,0.00021095,4]
[365154888,1749501038659,-440.0,0.00021095,4]
[365154889,1749501038668,-460.0,0.00021095,4]
[365154890,1749501038677,-440.0,0.00021095,4]
[365154891,1749501038686,-420.0,0.00021095,4]
[365154892,1749501038696,-460.0,0.00021095,4]
[365154893,1749501038705,-440.0,0.00021095,4]
[365154894,1749501038715,-460.0,0.00021095,4]
[365154895,1749501038724,-440.0,0.00021095,4]
[365154896,1749501038734,-460.0,0.00021095,4]
[365154897,1749501038743,-277.02910787,0.00021095,4]
[365154898,1749501038753,-382.35045009,0.00021095,4]
[365154899,1749501038763,-460.0,0.00021095,4]
[365154900,1749501038773,-460.0,0.00021095,4]
[365154901,1749501038782,-460.0,0.00021095,4]
[365154902,1749501038792,-320.0,0.00021095,4]
[365154903,1749501038801,-440.0,0.00021095,4]
[365154904,1749501038811,-460.0,0.00021095,4]
[365154905,1749501038820,-460.0,0.00021095,4]
[365154906,1749501038830,-460.0,0.00021095,2]
[365154907,1749501038840,-500.0,0.00021095,4]
[365154908,1749501038850,-460.0,0.00021095,4]
[365154909,1749501038860,-460.0,0.00021095,4]
[365154910,1749501038870,-460.0,0.00021095,4]
[365154911,1749501038879,-460.0,0.00021095,4]
[365154912,1749501038893,-460.0,0.00021095,4]
[365154913,1749501038902,-216.31016594,0.00021095,4]
[365154914,1749501038913,-440.0,0.00021095,4]
[365154915,1749501038922,-193.72963428,0.00021095,4]
[365154916,1749501038933,-430.0,0.00021095,4]
[365154917,1749501038943,-420.0,0.00021095,4]
[365154918,1749501038953,-440.0,0.00021095,4]
[365154919,1749501038963,-460.0,0.00021095,4]